[Event "IV Estrellas 2022"]
[Site "La Palma"]
[Date "2022.08.08"]
[Round "4.17"]
[White "Martin Ramos, Daniel"]
[Black "Sosa Suarez, Carla Cristina"]
[Result "1/2-1/2"]
[ECO "C13"]
[WhiteElo "1582"]
[BlackElo "2125"]
[Annotator "RC"]
[PlyCount "132"]
[EventDate "2022.08.06"]
[EventType "swiss"]
[EventCountry "ESP"]
[SourceTitle "playchess.com"]
[Source "ChessBase"]
[SourceQuality "1"]
[TimeControl "5400+30"]

1. e4 {[%emt 0:00:03]} e6 {[%emt 0:00:04]} 2. d4 {[%emt 0:00:05]} d5 {[%emt 0:00:03]} 3. Nc3 {[%emt 0:00:05]} Nf6 {[%emt 0:00:06]} 4. Bg5 {[%emt 0:00:07]} dxe4 {[%emt 0:00:11]} 5. Bxf6 {[%emt 0:00:37]} gxf6 {[%emt 0:02:25]} 6. d5 {[%emt 0:01:27]} Bb4 {[%emt 0:05:53]} 7. Qd2 {[%emt 0:05:17]} Bxc3 {[%emt 0:09:18]} 8. Qxc3 {[%emt 0:00:07]} exd5 {[%emt 0:00:09]} 9. O-O-O {[%emt 0:00:13]} Be6 {[%emt 0:05:07]} 10. f3 {[%emt 0:01:02]} Nd7 {[%emt 0:11:31]} 11. fxe4 {[%emt 0:01:08]} dxe4 {[%emt 0:00:08]} 12. Qb4 {[%emt 0:00:16]} f5 {[%emt 0:03:35]} 13. Qxb7 {[%emt 0:03:35]} Rb8 {[%emt 0:13:11]} 14. Qxa7 {[%emt 0:00:11]} Ra8 {[%emt 0:05:02]} 15. Qd4 {[%emt 0:00:28]} Qg5+ {[%emt 0:00:58]} 16. Rd2 {[%emt 0:00:38]} O-O {[%emt 0:04:11]} 17. a3 {[%emt 0:00:40]} Rfd8 {[%emt 0:03:24]} 18. Nh3 {[%emt 0:02:25]} Qh6 {[%emt 0:00:43]} 19. Kb1 {[%emt 0:02:42]} Nc5 {[%emt 0:05:57]} 20. Qxd8+ {[%emt 0:00:10]} Rxd8 {[%emt 0:00:02]} 21. Rxd8+ {[%emt 0:00:22]} Kg7 {[%emt 0:00:04]} 22. g3 {[%emt 0:04:18]} Qe3 {[%emt 0:02:37]} 23. Bb5 {[%emt 0:03:25]} Nb7 {[%emt 0:00:51]} 24. Rdd1 {[%emt 0:01:14]} Nd6 {[%emt 0:00:23]} 25. Ba6 {[%emt 0:01:25]} Qb6 {[%emt 0:03:13]} 26. Be2 {[%emt 0:01:07]} Nb5 {[%emt 0:01:37]} 27. Bxb5 {[%emt 0:00:22]} Qxb5 {[%emt 0:00:01]} 28. Nf4 {[%emt 0:00:18]} Qc4 {[%emt 0:01:42]} 29. Nxe6+ {[%emt 0:00:18]} Qxe6 {[%emt 0:00:39]} 30. Rhf1 {[%emt 0:03:20]} h5 {[%emt 0:03:06]} 31. Rf2 {[%emt 0:06:07]} Kg6 {[%emt 0:00:39]} 32. Rdf1 {[%emt 0:00:32]} e3 {[%emt 0:03:28]} 33. Re2 {[%emt 0:00:16]} Qe4 {[%emt 0:01:14]} 34. Rfe1 {[%emt 0:02:05]} f4 {[%emt 0:00:04]} 35. gxf4 {[%emt 1:01:35]} Qxf4 {[%emt 0:00:07]} 36. h3 {[%emt 0:00:00]} Kg5 {[%emt 0:01:50]} 37. Rxe3 {[%emt 0:00:00]} Kf6 {[%emt 0:01:13]} 38. Rc3 {[%emt 0:00:00]} Qf2 {[%emt 0:02:28]} 39. Ree3 {[%emt 0:00:00]} Qg1+ {[%emt 0:01:06]} 40. Ka2 {[%emt 0:00:00]} Qh2 {[%emt 0:00:46]} 41. a4 {[%emt 0:00:00]} Qd6 {[%emt 0:00:15]} 42. b3 {[%emt 0:00:00]} Kg5 {[%emt 0:01:42]} 43. Rc4 {[%emt 0:00:00]} f5 {[%emt 0:01:21]} 44. h4+ {[%emt 0:00:00]} Kf6 {[%emt 0:00:53]} 45. Rec3 {[%emt 0:00:00]} Ke5 {[%emt 0:02:22]} 46. Rc5+ {[%emt 0:00:00]} Kf4 {[%emt 0:03:26]} 47. R3c4+ {[%emt 0:00:00]} Ke3 {[%emt 0:00:42]} 48. Rxf5 {[%emt 0:00:00]} Kd2 {[%emt 0:01:03]} 49. Rxh5 {[%emt 0:00:00]} Kc1 {[%emt 0:01:02]} 50. Rhc5 {[%emt 0:00:00]} Qf6 {[%emt 0:00:49]} 51. Rc3 {[%emt 0:00:00]} Qxh4 {[%emt 0:00:34]} 52. Rxc7 {[%emt 0:00:00]} Qf6 {[%emt 0:00:47]} 53. Ka3 {[%emt 0:00:00]} Qd6+ {[%emt 0:00:19]} 54. R7c5 {[%emt 0:00:00]} Qe7 {[%emt 0:00:50]} 55. a5 {[%emt 0:00:00]} Qa7 {[%emt 0:00:15]} 56. b4 {[%emt 0:00:00]} Qa6 {[%emt 0:00:50]} 57. Ka4 {[%emt 0:00:00]} Kb2 {[%emt 0:00:20]} 58. b5 {[%emt 0:00:00]} Qe6 {[%emt 0:00:27]} 59. Rb3+ {[%emt 0:00:00]} Ka2 {[%emt 0:00:36]} 60. Rcc3 {[%emt 0:00:00]} Qe5 {[%emt 0:00:43]} 61. Rd3 {[%emt 0:00:00]} Qc5 {[%emt 0:00:30]} 62. Rb4 {[%emt 0:00:00]} Qxc2+ {[%emt 0:00:32]} 63. Rdb3 {[%emt 0:00:00]} Ka1 {[%emt 0:00:38]} 64. Rh4 {[%emt 0:00:00]} Ka2 {[%emt 0:00:27]} 65. Rhb4 {[%emt 0:00:00]} Ka1 {[%emt 0:02:31]} 66. b6 {[%emt 0:15:30]} Qc6+ {[%emt 0:00:30]} 1/2-1/2

[Event "IV Estrellas 2022"]
[Site "La Palma"]
[Date "2022.08.08"]
[Round "4.18"]
[White "Cruz Gomez, Isidro"]
[Black "Pleschke, Julius Jonas"]
[Result "1/2-1/2"]
[ECO "D30"]
[WhiteElo "2089"]
[BlackElo "1685"]
[Annotator "NA RC"]
[PlyCount "106"]
[EventDate "2022.08.06"]
[EventType "swiss"]
[EventCountry "ESP"]
[SourceTitle "playchess.com"]
[Source "ChessBase"]
[SourceQuality "1"]
[TimeControl "5400+30"]

1. d4 {[%emt 0:00:21]} d5 {[%emt 0:00:21]} 2. c4 {[%emt 0:00:09]} c6 {[%emt 0:00:19]} 3. e3 {[%emt 0:00:25]} Nf6 {[%emt 0:00:10]} 4. Nf3 {[%emt 0:00:15]} e6 {[%emt 0:00:26]} 5. b3 {[%emt 0:00:09]} Nbd7 {[%emt 0:00:52]} 6. Bd3 {[%emt 0:00:14]} Be7 {[%emt 0:02:30]} 7. Bb2 {[%emt 0:00:23]} O-O {[%emt 0:00:32]} 8. Nbd2 {[%emt 0:00:20]} b6 {[%emt 0:02:36]} 9. O-O {[%emt 0:00:12]} Bb7 {[%emt 0:00:05]} 10. e4 {[%emt 0:00:06]} dxe4 {[%emt 0:00:52]} 11. Nxe4 {[%emt 0:00:08]} Nxe4 {[%emt 0:00:07]} 12. Bxe4 {[%emt 0:00:05]} Nf6 {[%emt 0:00:31]} 13. Bc2 {[%emt 0:00:06]} c5 {[%emt 0:03:00]} 14. Ne5 {[%emt 0:02:48]} cxd4 {[%emt 0:05:47]} 15. Bxd4 {[%emt 0:00:30]} Qc7 {[%emt 0:01:24]} 16. Qe2 {[%emt 0:00:26]} Rad8 {[%emt 0:04:11]} 17. Rad1 {[%emt 0:01:27]} Bc5 {[%emt 0:13:37]} 18. Bb2 {[%emt 0:01:27]} Rxd1 {[%emt 0:03:11]} 19. Rxd1 {[%emt 0:00:06]} Rd8 {[%emt 0:02:01]} 20. Ng4 {[%emt 0:05:12]} Rxd1+ {[%emt 0:08:24]} 21. Qxd1 {[%emt 0:00:06]} Nxg4 22. Qxg4 {[%emt 0:00:12]} Bf8 {[%emt 0:07:16]} 23. h4 {[%emt 0:01:54]} Qd6 {[%emt 0:06:25]} 24. Qh5 {[%emt 0:05:07]} h6 {[%emt 0:05:00]} 25. Qe2 {[%emt 0:02:30]} Qc6 {[%emt 0:03:45]} 26. f3 {[%emt 0:00:37]} Qd6 {[%emt 0:04:43]} 27. Qd3 {[%emt 0:00:40]} Qxd3 {[%emt 0:00:15]} 28. Bxd3 {[%emt 0:00:04]} Bd6 {[%emt 0:00:33]} 29. Kf2 {[%emt 0:00:09]} f6 {[%emt 0:01:57]} 30. a3 {[%emt 0:00:13]} Bc5+ {[%emt 0:02:11]} 31. Ke2 {[%emt 0:00:27]} a5 {[%emt 0:00:13]} 32. h5 {[%emt 0:00:09]} e5 {[%emt 0:01:08]} 33. Be4 {[%emt 0:01:48]} Bxe4 {[%emt 0:00:16]} 34. fxe4 {[%emt 0:00:05]} Kf7 {[%emt 0:00:41]} 35. Bc1 {[%emt 0:00:19]} Bd6 {[%emt 0:09:52]} 36. Kd3 {[%emt 0:00:15]} Ke6 {[%emt 0:00:51]} 37. g4 {[%emt 0:00:08]} Bc5 {[%emt 0:01:52]} 38. Kc2 {[%emt 0:00:34]} Kd7 {[%emt 0:01:04]} 39. Kb2 {[%emt 0:00:41]} Bd4+ {[%emt 0:01:01]} 40. Ka2 {[%emt 0:00:09]} Kc6 {[%emt 0:00:05]} 41. b4 {[%emt 0:00:09]} a4 {[%emt 0:01:15]} 42. Bd2 {[%emt 0:00:42]} b5 {[%emt 0:01:08]} 43. c5 {[%emt 0:12:13]} Kb7 {[%emt 0:00:25]} 44. Kb1 {[%emt 0:00:08]} Kc6 {[%emt 0:00:34]} 45. Kc2 {[%emt 0:00:11]} Kb7 {[%emt 0:00:36]} 46. Bc1 {[%emt 0:00:07]} Kc6 {[%emt 0:00:24]} 47. Kd3 {[%emt 0:00:10]} Kb7 {[%emt 0:01:09]} 48. Ke2 {[%emt 0:00:07]} Kc6 {[%emt 0:00:06]} 49. Kf3 {[%emt 0:00:08]} Kb7 {[%emt 0:01:31]} 50. g5 {[%emt 0:05:06]} fxg5 {[%emt 0:01:12]} 51. Kg4 {[%emt 0:00:06]} Kc6 {[%emt 0:00:24]} 52. Kf5 {[%emt 0:00:08]} g4 53. Kxg4 {[%emt 0:00:58]} Kd7 {[%emt 0:02:39]} 1/2-1/2

[Event "IV Estrellas 2022"]
[Site "La Palma"]
[Date "2022.08.09"]
[Round "5.1"]
[White "Baskin, Robert"]
[Black "Del Rio De Angelis, Salvador G."]
[Result "1-0"]
[ECO "B80"]
[WhiteElo "2408"]
[BlackElo "2442"]
[Annotator "RC"]
[PlyCount "73"]
[EventDate "2022.08.06"]
[EventType "swiss"]
[EventCountry "ESP"]
[SourceTitle "playchess.com"]
[Source "ChessBase"]
[SourceQuality "1"]
[TimeControl "5400+30"]

1. e4 {[%emt 0:00:07]} c5 {[%emt 0:00:11]} 2. Nc3 {[%emt 0:00:39]} e6 {[%emt 0:01:58]} 3. Nf3 {[%emt 0:00:22]} a6 {[%emt 0:00:15]} 4. g3 {[%emt 0:01:31]} d6 {[%emt 0:05:24]} 5. d4 {[%emt 0:01:30]} cxd4 {[%emt 0:00:12]} 6. Nxd4 {[%emt 0:00:05]} Nf6 {[%emt 0:00:31]} 7. Bg2 {[%emt 0:00:17]} Be7 {[%emt 0:02:42]} 8. O-O {[%emt 0:00:40]} Qc7 {[%emt 0:02:05]} 9. a4 {[%emt 0:08:49]} Nc6 {[%emt 0:00:40]} 10. Nxc6 {[%emt 0:07:52]} bxc6 {[%emt 0:00:24]} 11. b3 {[%emt 0:00:58]} O-O {[%emt 0:02:00]} 12. Ba3 {[%emt 0:02:41]} Bb7 {[%emt 0:02:36]} 13. Re1 {[%emt 0:07:16]} c5 {[%emt 0:02:13]} 14. Qe2 {[%emt 0:05:07]} Nd7 {[%emt 0:00:29]} 15. Rad1 {[%emt 0:00:21]} Rfe8 {[%emt 0:04:16]} 16. Bc1 {[%emt 0:06:12]} Ne5 {[%emt 0:01:46]} 17. f4 {[%emt 0:02:52]} Nc6 {[%emt 0:00:07]} 18. Be3 {[%emt 0:00:23]} Nb4 {[%emt 0:03:42]} 19. Nb1 {[%emt 0:09:31]} d5 {[%emt 0:04:06]} 20. c3 {[%emt 0:01:25]} Nc6 {[%emt 0:04:45]} 21. exd5 {[%emt 0:00:37]} exd5 {[%emt 0:00:06]} 22. Rxd5 {[%emt 0:08:59]} Na5 {[%emt 0:01:03]} 23. Re5 {[%emt 0:01:52]} Bd6 {[%emt 0:00:18]} 24. Rxe8+ {[%emt 0:00:48]} Rxe8 {[%emt 0:00:06]} 25. Nd2 {[%emt 0:00:31]} Bf8 {[%emt 0:04:07]} 26. Bxb7 {[%emt 0:10:22]} Qxb7 {[%emt 0:00:40]} 27. Nc4 {[%emt 0:06:12]} Nxb3 {[%emt 0:09:59]} 28. Qd1 {[%emt 0:02:57]} Re4 {[%emt 0:03:25]} 29. Qd3 {[%emt 0:02:03]} Qe7 {[%emt 0:00:53]} 30. Ne5 {[%emt 0:05:55]} Rxa4 {[%emt 0:01:06]} 31. Bf2 {[%emt 0:00:06]} c4 {[%emt 0:01:54]} 32. Nxc4 {[%emt 0:00:58]} Ra1 {[%emt 0:07:24]} 33. Rxa1 {[%emt 0:00:52]} Nxa1 {[%emt 0:00:07]} 34. Ne5 {[%emt 0:00:57]} Qb7 {[%emt 0:19:57]} 35. Qd8 {[%emt 0:01:19]} Qe7 {[%emt 0:00:57]} 36. Qd1 {[%emt 0:00:37]} Qa3 {[%emt 0:00:17]} 37. Qd5 {[%emt 0:00:11]} 1-0

[Event "IV Estrellas 2022"]
[Site "La Palma"]
[Date "2022.08.09"]
[Round "5.2"]
[White "Pulvett Marin, Daniel Eduardo"]
[Black "Geske, Julian"]
[Result "1/2-1/2"]
[ECO "D17"]
[WhiteElo "2523"]
[BlackElo "2386"]
[Annotator "RC"]
[PlyCount "63"]
[EventDate "2022.08.06"]
[EventType "swiss"]
[EventCountry "ESP"]
[SourceTitle "playchess.com"]
[Source "ChessBase"]
[SourceQuality "1"]
[TimeControl "5400+30"]

1. d4 {[%emt 1:31:00]} d5 {[%emt 1:31:00]} 2. c4 {[%emt 0:00:30]} c6 {[%emt 0:00:30]} 3. Nf3 {[%emt 0:00:30]} Nf6 {[%emt 0:00:30]} 4. Nc3 {[%emt 0:00:30]} dxc4 {[%emt 0:00:30]} 5. a4 {[%emt 0:00:30]} Bf5 {[%emt 0:00:30]} 6. Ne5 {[%emt 0:00:30]} Nbd7 {[%emt 0:00:30]} 7. Nxc4 {[%emt 0:00:30]} Qc7 {[%emt 0:00:30]} 8. g3 {[%emt 0:00:30]} e5 {[%emt 0:00:30]} 9. dxe5 {[%emt 0:00:30]} Nxe5 {[%emt 0:00:30]} 10. Bf4 {[%emt 0:00:30]} Nfd7 {[%emt 0:00:30]} 11. Bg2 {[%emt 0:00:30]} g5 {[%emt 0:00:30]} 12. Ne3 {[%emt 0:00:30]} gxf4 {[%emt 0:00:30]} 13. Nxf5 {[%emt 0:00:30]} O-O-O {[%emt 0:00:30]} 14. Qc2 {[%emt 0:00:30]} fxg3 {[%emt 0:00:30]} 15. hxg3 {[%emt 0:00:30]} a5 {[%emt 0:00:30]} 16. O-O {[%emt 0:00:30]} Nc5 {[%emt 0:00:30]} 17. Rfd1 {[%emt 0:00:30]} h5 {[%emt 0:00:30]} 18. Rxd8+ {[%emt 0:00:30]} Qxd8 {[%emt 0:00:30]} 19. Rd1 {[%emt 0:00:30]} Qf6 {[%emt 0:00:30]} 20. e3 {[%emt 0:00:30]} Kb8 {[%emt 0:00:30]} 21. Ne2 {[%emt 0:00:30]} Ng6 {[%emt 0:00:30]} 22. Ned4 {[%emt 0:00:30]} h4 {[%emt 0:00:30]} 23. Qc3 {[%emt 0:00:30]} Be7 {[%emt 0:00:30]} 24. Qxa5 hxg3 {[%emt 0:00:30]} 25. fxg3 {[%emt 0:01:00]} Ne5 {[%emt 0:00:30]} 26. Rc1 {[%emt 0:00:30]} Nb3 {[%emt 0:00:30]} 27. Nxb3 {[%emt 0:00:30]} Qxf5 {[%emt 0:00:30]} 28. Nc5 {[%emt 0:00:30]} Nf3+ {[%emt 0:00:30]} 29. Bxf3 {[%emt 0:00:30]} Bxc5 {[%emt 0:00:30]} 30. Qxc5 {[%emt 0:00:30]} Qxf3 {[%emt 0:00:30]} 31. Qe5+ {[%emt 0:00:30]} Ka7 {[%emt 0:00:30]} 32. Qa5+ {[%emt 0:00:30]} 1/2-1/2

[Event "IV Estrellas 2022"]
[Site "La Palma"]
[Date "2022.08.09"]
[Round "5.3"]
[White "Kurajica, Bojan"]
[Black "Martinez Duany, Lelys Stanley"]
[Result "1/2-1/2"]
[ECO "A05"]
[WhiteElo "2525"]
[BlackElo "2497"]
[Annotator "RC"]
[PlyCount "77"]
[EventDate "2022.08.06"]
[EventType "swiss"]
[EventCountry "ESP"]
[SourceTitle "playchess.com"]
[Source "ChessBase"]
[SourceQuality "1"]
[TimeControl "5400+30"]

1. Nf3 {[%emt 0:00:07]} Nf6 {[%emt 0:02:31]} 2. g3 {[%emt 0:00:38]} g6 {[%emt 0:00:34]} 3. b3 {[%emt 0:00:13]} Bg7 {[%emt 0:00:36]} 4. Bb2 {[%emt 0:00:06]} O-O {[%emt 0:00:59]} 5. Bg2 {[%emt 0:00:09]} b6 {[%emt 0:01:35]} 6. Ne5 {[%emt 0:04:19]} d5 {[%emt 0:00:33]} 7. d4 {[%emt 0:00:46]} Bb7 {[%emt 0:00:52]} 8. O-O {[%emt 0:04:07]} Nfd7 {[%emt 0:02:16]} 9. Nd3 {[%emt 0:05:16]} e6 {[%emt 0:02:00]} 10. c4 {[%emt 0:01:19]} a5 {[%emt 0:05:03]} 11. Nd2 {[%emt 0:05:17]} Na6 {[%emt 0:00:36]} 12. e4 {[%emt 0:09:49]} dxc4 {[%emt 0:02:22]} 13. Nxc4 {[%emt 0:01:55]} Nb4 {[%emt 0:00:35]} 14. Nxb4 {[%emt 0:05:09]} axb4 {[%emt 0:00:37]} 15. e5 {[%emt 0:00:32]} Bxg2 {[%emt 0:05:36]} 16. Kxg2 {[%emt 0:00:04]} b5 {[%emt 0:00:36]} 17. Ne3 {[%emt 0:00:25]} c5 {[%emt 0:03:17]} 18. f4 {[%emt 0:07:53]} Qc7 {[%emt 0:09:24]} 19. Qe2 {[%emt 0:01:32]} Qb7+ {[%emt 0:01:46]} 20. Qf3 {[%emt 0:01:19]} Qxf3+ {[%emt 0:00:15]} 21. Rxf3 {[%emt 0:04:59]} Rfd8 {[%emt 0:03:44]} 22. Rf2 {[%emt 0:02:05]} cxd4 {[%emt 0:02:31]} 23. Bxd4 {[%emt 0:00:45]} Bf8 {[%emt 0:00:09]} 24. Rc1 {[%emt 0:01:09]} Nf6 {[%emt 0:03:55]} 25. Bb6 {[%emt 0:01:42]} Ne4 {[%emt 0:00:35]} 26. Bxd8 {[%emt 0:00:16]} Nxf2 {[%emt 0:00:58]} 27. Kxf2 {[%emt 0:00:18]} Rxd8 {[%emt 0:00:05]} 28. Ke2 {[%emt 0:00:33]} h5 {[%emt 0:00:33]} 29. Nd1 {[%emt 0:08:05]} g5 {[%emt 0:12:07]} 30. Nf2 {[%emt 0:00:24]} gxf4 {[%emt 0:01:31]} 31. gxf4 {[%emt 0:00:04]} Bh6 {[%emt 0:04:54]} 32. Ke3 {[%emt 0:02:32]} f6 {[%emt 0:05:28]} 33. exf6 {[%emt 0:05:41]} e5 {[%emt 0:00:55]} 34. Ke4 {[%emt 0:08:56]} exf4 {[%emt 0:01:04]} 35. Nd3 {[%emt 0:04:33]} Rd6 {[%emt 0:10:36]} 36. Rg1+ {[%emt 0:00:38]} Kh7 {[%emt 0:00:31]} 37. f7 {[%emt 0:03:35]} Rf6 {[%emt 0:00:06]} 38. Ne5 {[%emt 0:03:25]} f3 {[%emt 0:00:08]} 39. Rf1 {[%emt 0:01:24]} 1/2-1/2

[Event "IV Estrellas 2022"]
[Site "La Palma"]
[Date "2022.08.09"]
[Round "5.4"]
[White "Cubas Cabrera, Angel Luis"]
[Black "Martinez Reyes, Pedro Ramon"]
[Result "1/2-1/2"]
[ECO "D76"]
[WhiteElo "2207"]
[BlackElo "2408"]
[Annotator "RC"]
[PlyCount "74"]
[EventDate "2022.08.06"]
[EventType "swiss"]
[EventCountry "ESP"]
[SourceTitle "playchess.com"]
[Source "ChessBase"]
[SourceQuality "1"]
[TimeControl "5400+30"]

1. d4 {[%emt 0:00:02]} Nf6 {[%emt 0:04:59]} 2. Nf3 {[%emt 0:00:14]} g6 {[%emt 0:00:56]} 3. g3 {[%emt 0:00:06]} Bg7 {[%emt 0:00:23]} 4. Bg2 {[%emt 0:00:05]} d5 {[%emt 0:00:06]} 5. c4 {[%emt 0:01:38]} O-O {[%emt 0:00:53]} 6. cxd5 {[%emt 0:01:22]} Nxd5 {[%emt 0:00:07]} 7. Nc3 {[%emt 0:00:26]} Nb6 {[%emt 0:00:55]} 8. O-O {[%emt 0:00:15]} Nc6 {[%emt 0:00:12]} 9. e3 {[%emt 0:00:25]} Be6 {[%emt 0:08:55]} 10. b3 {[%emt 0:05:44]} a5 {[%emt 0:01:43]} 11. Bb2 {[%emt 0:13:07]} a4 {[%emt 0:02:03]} 12. Rc1 {[%emt 0:01:24]} axb3 {[%emt 0:15:42]} 13. axb3 {[%emt 0:00:28]} Nb4 {[%emt 0:00:22]} 14. Ng5 {[%emt 0:21:33]} Bf5 {[%emt 0:20:13]} 15. Bxb7 {[%emt 0:15:41]} Nd3 {[%emt 0:08:02]} 16. Rb1 {[%emt 0:07:45]} Rb8 {[%emt 0:05:34]} 17. Be4 {[%emt 0:01:53]} Nxb2 {[%emt 0:00:02]} 18. Rxb2 {[%emt 0:00:04]} e5 {[%emt 0:00:14]} 19. Bxf5 {[%emt 0:04:20]} Qxg5 {[%emt 0:00:14]} 20. Bh3 {[%emt 0:04:26]} exd4 {[%emt 0:00:59]} 21. exd4 {[%emt 0:00:08]} c5 {[%emt 0:02:08]} 22. Ne2 {[%emt 0:01:24]} cxd4 {[%emt 0:07:19]} 23. Nxd4 {[%emt 0:01:38]} Nc4 {[%emt 0:02:02]} 24. Re2 {[%emt 0:01:31]} Rfd8 {[%emt 0:01:19]} 25. bxc4 {[%emt 0:00:56]} Bxd4 {[%emt 0:00:01]} 26. Rd2 {[%emt 0:03:08]} Rb1 {[%emt 0:03:24]} 27. Qxb1 {[%emt 0:03:19]} Qxd2 {[%emt 0:00:04]} 28. Qb3 {[%emt 0:05:44]} Rd6 {[%emt 0:00:53]} 29. Bg2 {[%emt 0:01:50]} Kg7 {[%emt 0:02:49]} 30. Bf3 {[%emt 0:00:49]} Bc5 {[%emt 0:01:20]} 31. Kg2 {[%emt 0:00:48]} h5 {[%emt 0:02:26]} 32. h4 {[%emt 0:00:48]} Rf6 {[%emt 0:01:04]} 33. Qd1 {[%emt 0:00:15]} Qc3 {[%emt 0:00:22]} 34. Bd5 {[%emt 0:01:09]} Qb2 {[%emt 0:00:20]} 35. Bf3 {[%emt 0:00:06]} Qc3 {[%emt 0:03:32]} 36. Bd5 {[%emt 0:00:06]} Qb2 {[%emt 0:00:14]} 37. Bf3 {[%emt 0:00:09]} Qc3 {[%emt 0:00:26]} 1/2-1/2

[Event "IV Estrellas 2022"]
[Site "La Palma"]
[Date "2022.08.09"]
[Round "5.5"]
[White "Pierrot, Facundo"]
[Black "Brito Garcia, Alfredo"]
[Result "1-0"]
[ECO "C65"]
[WhiteElo "2371"]
[BlackElo "2291"]
[Annotator "ChessBase"]
[PlyCount "51"]
[EventDate "2022.08.06"]
[EventType "swiss"]
[EventCountry "ESP"]
[SourceTitle "playchess.com"]
[Source "ChessBase"]
[SourceQuality "1"]
[TimeControl "5400+30"]

1. e4 {[%emt 0:00:03]} e5 {[%emt 0:00:06]} 2. Nf3 {[%emt 0:00:13]} Nc6 {[%emt 0:00:09]} 3. Bb5 {[%emt 0:00:13]} Nf6 {[%emt 0:00:07]} 4. d3 {[%emt 0:00:36]} Bc5 {[%emt 0:00:07]} 5. c3 {[%emt 0:00:12]} O-O {[%emt 0:01:03]} 6. O-O {[%emt 0:00:30]} d5 {[%emt 0:00:21]} 7. exd5 {[%emt 0:02:37]} Qxd5 {[%emt 0:00:41]} 8. Bc4 {[%emt 0:00:06]} Qd8 {[%emt 0:00:04]} 9. Nbd2 {[%emt 0:01:12]} a5 {[%emt 0:07:48]} 10. h3 {[%emt 1:29:48]} Bf5 {[%emt 1:25:04]} 11. Qe2 {[%emt 0:00:30]} Re8 {[%emt 0:00:30]} 12. Ng5 {[%emt 0:00:00]} Bg6 13. Nde4 {[%emt 0:01:00]} Nxe4 {[%emt 0:01:00]} 14. dxe4 {[%emt 0:00:00]} Qf6 {[%emt 0:00:00]} 15. h4 {[%emt 0:00:00]} h6 {[%emt 0:00:00]} 16. h5 {[%emt 0:00:00]} hxg5 {[%emt 0:00:00]} 17. hxg6 {[%emt 0:00:00]} Qxg6 {[%emt 0:00:00]} 18. g3 {[%emt 0:00:00]} Nd8 {[%emt 0:00:00]} 19. Kg2 {[%emt 0:00:00]} Ne6 {[%emt 0:00:00]} 20. Rh1 {[%emt 0:00:00]} Rad8 {[%emt 0:00:00]} 21. Qg4 {[%emt 0:00:00]} Nf4+ {[%emt 0:00:00]} 22. Kf3 {[%emt 0:00:00]} Nd3 {[%emt 0:00:00]} 23. Bxg5 {[%emt 0:00:00]} Nxf2 {[%emt 0:00:00]} 24. Qh4 {[%emt 0:00:00]} Qxe4+ {[%emt 0:00:00]} 25. Qxe4 {[%emt 0:00:00]} Nxe4 {[%emt 0:00:00]} 26. Kxe4 {[%emt 0:06:30]} 1-0

[Event "IV Estrellas 2022"]
[Site "La Palma"]
[Date "2022.08.09"]
[Round "5.6"]
[White "Capote Robayna, Nathaniel"]
[Black "Pap, Misa"]
[Result "0-1"]
[ECO "B07"]
[WhiteElo "2150"]
[BlackElo "2375"]
[Annotator "RC"]
[PlyCount "62"]
[EventDate "2022.08.06"]
[EventType "swiss"]
[EventCountry "ESP"]
[SourceTitle "playchess.com"]
[Source "ChessBase"]
[SourceQuality "1"]
[TimeControl "5400+30"]

1. d4 {[%emt 0:00:03]} Nf6 {[%emt 0:10:49]} 2. Bf4 {[%emt 0:00:20]} d6 {[%emt 0:02:25]} 3. Nc3 {[%emt 0:00:53]} c6 {[%emt 0:01:19]} 4. e4 {[%emt 0:02:13]} Qb6 {[%emt 0:04:10]} 5. Rb1 {[%emt 0:03:07]} e5 {[%emt 0:12:46]} 6. dxe5 {[%emt 0:08:27]} Ng4 {[%emt 0:00:09]} 7. Bg3 {[%emt 0:01:30]} h5 {[%emt 0:12:04]} 8. Nf3 {[%emt 0:12:57]} h4 {[%emt 0:00:08]} 9. Nxh4 {[%emt 0:00:16]} dxe5 {[%emt 0:04:18]} 10. Nf5 {[%emt 0:10:25]} Bxf5 {[%emt 0:06:22]} 11. exf5 {[%emt 0:00:14]} Nf6 {[%emt 0:01:38]} 12. Bxe5 {[%emt 0:06:15]} Nbd7 {[%emt 0:00:01]} 13. Bd4 {[%emt 0:05:38]} Bc5 {[%emt 0:09:05]} 14. Qe2+ {[%emt 0:07:17]} Kf8 {[%emt 0:01:04]} 15. Bxc5+ {[%emt 0:00:08]} Nxc5 {[%emt 0:03:42]} 16. Qf3 {[%emt 0:12:06]} Re8+ {[%emt 0:03:29]} 17. Be2 {[%emt 0:00:10]} Nce4 {[%emt 0:00:07]} 18. Nxe4 {[%emt 0:00:47]} Nxe4 {[%emt 0:00:06]} 19. Qa3+ {[%emt 0:02:44]} Kg8 {[%emt 0:11:13]} 20. Qe3 {[%emt 0:02:58]} Qa5+ {[%emt 0:00:11]} 21. c3 {[%emt 0:04:33]} Nf6 {[%emt 0:01:51]} 22. Qd3 {[%emt 0:05:23]} Qe5 {[%emt 0:05:11]} 23. h4 {[%emt 0:03:29]} Rh5 {[%emt 0:02:16]} 24. Rh3 {[%emt 0:01:18]} Nd5 {[%emt 0:00:28]} 25. Kf1 {[%emt 0:02:53]} Rxf5 {[%emt 0:01:25]} 26. Bg4 {[%emt 0:02:14]} Rf6 {[%emt 0:00:19]} 27. Qg3 {[%emt 0:03:02]} Qe4 {[%emt 0:03:17]} 28. Rd1 {[%emt 0:00:19]} Rg6 {[%emt 0:02:02]} 29. f4 {[%emt 0:01:47]} Nxf4 {[%emt 0:01:25]} 30. Qf3 {[%emt 0:00:31]} Qc4+ {[%emt 0:00:20]} 31. Kg1 {[%emt 0:00:21]} Rxg4 {[%emt 0:00:30]} 0-1

[Event "IV Estrellas 2022"]
[Site "La Palma"]
[Date "2022.08.09"]
[Round "5.7"]
[White "Roeder, Matthias"]
[Black "Del Rey, Diego"]
[Result "1/2-1/2"]
[ECO "A12"]
[WhiteElo "2357"]
[BlackElo "2358"]
[Annotator "RC"]
[PlyCount "44"]
[EventDate "2022.08.06"]
[EventType "swiss"]
[EventCountry "ESP"]
[SourceTitle "playchess.com"]
[Source "ChessBase"]
[SourceQuality "1"]
[TimeControl "5400+30"]

1. Nf3 {[%emt 0:00:04]} d5 {[%emt 0:00:18]} 2. g3 {[%emt 0:00:19]} Nf6 {[%emt 0:00:37]} 3. Bg2 {[%emt 0:00:15]} c6 {[%emt 0:00:12]} 4. O-O {[%emt 0:00:43]} Bf5 {[%emt 0:00:07]} 5. b3 {[%emt 0:01:36]} e6 {[%emt 0:00:56]} 6. Bb2 {[%emt 0:00:40]} Nbd7 {[%emt 0:00:29]} 7. d3 {[%emt 0:00:37]} h6 {[%emt 0:00:40]} 8. Nbd2 {[%emt 0:01:12]} Be7 {[%emt 0:05:03]} 9. c4 {[%emt 0:08:47]} O-O {[%emt 0:02:01]} 10. a3 {[%emt 0:01:33]} a5 {[%emt 0:01:17]} 11. Ra2 {[%emt 0:03:16]} Re8 {[%emt 0:03:44]} 12. Qa1 {[%emt 0:02:00]} Bf8 {[%emt 0:01:55]} 13. Ne5 {[%emt 0:02:20]} Nxe5 {[%emt 0:03:09]} 14. Bxe5 {[%emt 0:00:06]} Bg6 {[%emt 0:02:04]} 15. h3 {[%emt 0:03:15]} Bd6 {[%emt 0:03:00]} 16. Nf3 {[%emt 0:08:38]} Bh7 {[%emt 0:05:04]} 17. Rc1 {[%emt 0:04:49]} Bxe5 {[%emt 0:01:30]} 18. Nxe5 {[%emt 0:00:09]} Nd7 {[%emt 0:00:37]} 19. Nxd7 {[%emt 0:00:11]} Qxd7 {[%emt 0:00:05]} 20. b4 {[%emt 1:00:00]} axb4 {[%emt 1:07:42]} 21. axb4 Rxa2 22. Qxa2 {[%emt 0:00:00]} Ra8 {[%emt 0:01:00]} 1/2-1/2